[Event "Titled Tuesday Blitz August 15 Early 2023"]
[White "Berezin, Viktor"]
[Black "Bodnaruk, Anastasia"]
[WhiteFideId "14107872"]
[BlackFideId "4181751"]
[WhiteElo "2508"]
[BlackElo "2606"]
[Result "0-1"]
[Round "9"]
[TimeControl "180+1"]
[Date "2023.08.15"]
[WhiteClock "0:00:05"]
[BlackClock "0:00:03"]
[Board "72"]

1. d4 {[%clk 0:02:53]}  Nf6 {[%clk 0:02:59]} 2. g3 {[%clk 0:02:51]}  g6 {[%clk 0:02:59]} 3. Bg2 {[%clk 0:02:52]}  Bg7 {[%clk 0:02:59]} 4. Nf3 {[%clk 0:02:53]}  O-O {[%clk 0:02:58]} 5. O-O {[%clk 0:02:53]}  d5 {[%clk 0:02:58]} 6. c4 {[%clk 0:02:53]}  c6 {[%clk 0:02:58]} 7. cxd5 {[%clk 0:02:54]}  cxd5 {[%clk 0:02:57]} 8. Nc3 {[%clk 0:02:54]}  Nc6 {[%clk 0:02:55]} 9. Ne5 {[%clk 0:02:55]}  e6 {[%clk 0:02:41]} 10. Nxc6 {[%clk 0:02:51]}  bxc6 {[%clk 0:02:41]} 11. b3 {[%clk 0:02:52]}  c5 {[%clk 0:02:30]} 12. e3 {[%clk 0:02:41]}  cxd4 {[%clk 0:02:25]} 13. exd4 {[%clk 0:02:40]}  Ba6 {[%clk 0:02:25]} 14. Re1 {[%clk 0:02:40]}  Rc8 {[%clk 0:02:24]} 15. Bb2 {[%clk 0:02:39]}  Ne8 {[%clk 0:02:19]} 16. Na4 {[%clk 0:02:32]}  Nd6 {[%clk 0:02:10]} 17. Rc1 {[%clk 0:02:19]}  Bb5 {[%clk 0:01:58]} 18. Nc5 {[%clk 0:02:14]}  Qa5 {[%clk 0:01:48]} 19. a4 {[%clk 0:02:11]}  Bc6 {[%clk 0:01:47]} 20. Ba3 {[%clk 0:01:55]}  Rfd8 {[%clk 0:01:26]} 21. b4 {[%clk 0:01:51]}  Qb6 {[%clk 0:01:21]} 22. b5 {[%clk 0:01:38]}  Be8 {[%clk 0:01:20]} 23. Bb4 {[%clk 0:01:09]}  Nc4 {[%clk 0:01:20]} 24. Qg4 {[%clk 0:01:04]}  a5 {[%clk 0:01:13]} 25. Bc3 {[%clk 0:00:58]}  e5 {[%clk 0:01:08]} 26. Nb3 {[%clk 0:00:49]}  h5 {[%clk 0:00:53]} 27. Qd1 {[%clk 0:00:39]}  e4 {[%clk 0:00:49]} 28. Qe2 {[%clk 0:00:27]}  Bh6 {[%clk 0:00:47]} 29. Rc2 {[%clk 0:00:27]}  Na3 {[%clk 0:00:28]} 30. Bxa5 {[%clk 0:00:27]}  Rxc2 {[%clk 0:00:10]} 31. Bxb6 {[%clk 0:00:19]}  Rxe2 {[%clk 0:00:10]} 32. Rxe2 {[%clk 0:00:18]}  Rc8 {[%clk 0:00:10]} 33. Bc5 {[%clk 0:00:16]}  Nc4 {[%clk 0:00:11]} 34. Rc2 {[%clk 0:00:10]}  f5 {[%clk 0:00:11]} 35. Bf1 {[%clk 0:00:09]}  Bf7 {[%clk 0:00:10]} 36. a5 {[%clk 0:00:07]}  Be8 {[%clk 0:00:03]} 37. a6 {[%clk 0:00:08]}  Bxb5 {[%clk 0:00:03]} 38. a7 {[%clk 0:00:08]}  Ra8 {[%clk 0:00:04]} 39. Ra2 {[%clk 0:00:08]}  Kf7 {[%clk 0:00:03]} 40. Na5 {[%clk 0:00:08]}  Ke6 {[%clk 0:00:02]} 41. Nb7 {[%clk 0:00:08]}  Kd7 {[%clk 0:00:02]} 42. Ra1 {[%clk 0:00:05]}  f4 {[%clk 0:00:02]} 43. Rb1 {[%clk 0:00:05]}  Bc6 {[%clk 0:00:02]} 44. Bxc4 {[%clk 0:00:04]}  dxc4 {[%clk 0:00:02]} 45. Na5 {[%clk 0:00:04]}  e3 {[%clk 0:00:02]} 46. Nxc4 {[%clk 0:00:03]}  e2 {[%clk 0:00:02]} 47. Ne5+ {[%clk 0:00:03]}  Kc7 {[%clk 0:00:02]} 48. Bb6+ {[%clk 0:00:04]}  Kd6 {[%clk 0:00:03]} 49. Bc5+ {[%clk 0:00:04]}  Kc7 {[%clk 0:00:03]} 50. Bb6+ {[%clk 0:00:05]}  Kd6 {[%clk 0:00:04]} 51. Bc5+ {[%clk 0:00:05]}  Kd5 {[%clk 0:00:04]} 52. Re1 {[%clk 0:00:02]}  f3 {[%clk 0:00:04]} 53. Nxf3 {[%clk 0:00:02]}  Bb5 {[%clk 0:00:04]} 54. Ne5 {[%clk 0:00:02]}  Bd2 {[%clk 0:00:03]} 55. Rxe2 {[%clk 0:00:01]}  Bxe2 {[%clk 0:00:03]} 56. Nxg6 {[%clk 0:00:02]}  h4 {[%clk 0:00:03]} 57. Ne7+ {[%clk 0:00:02]}  Ke6 {[%clk 0:00:02]} 58. Kg2 {[%clk 0:00:03]}  Kd7 {[%clk 0:00:01]} 59. Nd5 {[%clk 0:00:03]}  Kc6 {[%clk 0:00:01]} 60. Nb6 {[%clk 0:00:04]}  Rxa7 {[%clk 0:00:02]} 61. Nc8 {[%clk 0:00:04]}  Rg7 {[%clk 0:00:02]} 62. Ne7+ {[%clk 0:00:04]}  Kb5 {[%clk 0:00:02]} 63. Nf5 {[%clk 0:00:05]}  Rg8 {[%clk 0:00:03]} 64. Nd6+ {[%clk 0:00:06]}  Ka4 {[%clk 0:00:03]} 65. Ne4 {[%clk 0:00:06]}  Bd3 {[%clk 0:00:02]} 66. Nf6 {[%clk 0:00:07]}  Rg6 {[%clk 0:00:02]} 67. Nd5 {[%clk 0:00:07]}  Be4+ {[%clk 0:00:02]} 68. f3 {[%clk 0:00:05]}  Bxd5 {[%clk 0:00:03]} 0-1


[Site "https://www.chess.com"]

[Event "Titled Tuesday Blitz August 15 Early 2023"]
[White "Milosevic, Milos"]
[Black "Marn, Jan"]
[WhiteFideId "964875"]
[BlackFideId "14619245"]
[WhiteElo "2601"]
[BlackElo "2506"]
[Result "1-0"]
[Round "9"]
[TimeControl "180+1"]
[Date "2023.08.15"]
[WhiteClock "0:00:50"]
[BlackClock "0:00:11"]
[Board "73"]

1. e4 {[%clk 0:02:59]}  e5 {[%clk 0:03:00]} 2. Nf3 {[%clk 0:02:59]}  Nc6 {[%clk 0:02:59]} 3. Bc4 {[%clk 0:03:00]}  Bc5 {[%clk 0:02:59]} 4. c3 {[%clk 0:02:59]}  Nf6 {[%clk 0:02:59]} 5. d4 {[%clk 0:03:00]}  exd4 {[%clk 0:02:58]} 6. cxd4 {[%clk 0:03:01]}  Bb4+ {[%clk 0:02:54]} 7. Bd2 {[%clk 0:03:01]}  Bxd2+ {[%clk 0:02:47]} 8. Nbxd2 {[%clk 0:03:02]}  d5 {[%clk 0:02:48]} 9. exd5 {[%clk 0:03:03]}  Nxd5 {[%clk 0:02:47]} 10. Qb3 {[%clk 0:03:03]}  Na5 {[%clk 0:02:44]} 11. Qa4+ {[%clk 0:03:00]}  Nc6 {[%clk 0:02:42]} 12. O-O {[%clk 0:02:59]}  O-O {[%clk 0:02:41]} 13. Rfe1 {[%clk 0:02:38]}  Nb6 {[%clk 0:02:35]} 14. Qc2 {[%clk 0:02:39]}  Nxd4 {[%clk 0:02:29]} 15. Nxd4 {[%clk 0:02:32]}  Qxd4 {[%clk 0:02:29]} 16. Bb3 {[%clk 0:02:18]}  Bd7 {[%clk 0:01:52]} 17. Nf3 {[%clk 0:02:15]}  Qf6 {[%clk 0:01:51]} 18. Qxc7 {[%clk 0:02:10]}  Bc6 {[%clk 0:01:51]} 19. Qe5 {[%clk 0:01:57]}  Qg6 {[%clk 0:01:43]} 20. Nh4 {[%clk 0:01:51]}  Qg4 {[%clk 0:01:43]} 21. g3 {[%clk 0:01:35]}  Rfe8 {[%clk 0:01:12]} 22. Qf5 {[%clk 0:01:32]}  Qxf5 {[%clk 0:01:09]} 23. Nxf5 {[%clk 0:01:32]}  Kf8 {[%clk 0:00:42]} 24. Nd6 {[%clk 0:01:14]}  Rxe1+ {[%clk 0:00:39]} 25. Rxe1 {[%clk 0:01:15]}  Nd5 {[%clk 0:00:34]} 26. Nc4 {[%clk 0:00:56]}  a5 {[%clk 0:00:22]} 27. Ne5 {[%clk 0:00:50]}  Re8 {[%clk 0:00:11]} 28. Bxd5 {[%clk 0:00:50]} 1-0


[Site "https://www.chess.com"]

[Event "Titled Tuesday Blitz August 15 Early 2023"]
[White "Smiechu"]
[Black "Altman, Joshua"]
[BlackFideId "426210"]
[WhiteElo "2412"]
[BlackElo "2577"]
[Result "0-1"]
[Round "9"]
[TimeControl "180+1"]
[Date "2023.08.15"]
[WhiteClock "0:00:13"]
[BlackClock "0:00:09"]
[Board "75"]

1. e4 {[%clk 0:03:00]}  e6 {[%clk 0:02:59]} 2. d4 {[%clk 0:03:00]}  d5 {[%clk 0:02:58]} 3. Bd3 {[%clk 0:03:00]}  Nf6 {[%clk 0:02:53]} 4. e5 {[%clk 0:03:01]}  Nfd7 {[%clk 0:02:54]} 5. f4 {[%clk 0:03:01]}  c5 {[%clk 0:02:54]} 6. c3 {[%clk 0:03:02]}  Nc6 {[%clk 0:02:54]} 7. Nf3 {[%clk 0:03:02]}  Qb6 {[%clk 0:02:53]} 8. Bc2 {[%clk 0:03:03]}  cxd4 {[%clk 0:02:51]} 9. cxd4 {[%clk 0:03:02]}  Nb4 {[%clk 0:02:51]} 10. O-O {[%clk 0:03:00]}  Nxc2 {[%clk 0:02:49]} 11. Qxc2 {[%clk 0:03:00]}  Be7 {[%clk 0:02:50]} 12. Nc3 {[%clk 0:02:58]}  O-O {[%clk 0:02:49]} 13. f5 {[%clk 0:02:55]}  exf5 {[%clk 0:02:42]} 14. Qxf5 {[%clk 0:02:55]}  Nb8 {[%clk 0:02:34]} 15. Qh5 {[%clk 0:02:54]}  Be6 {[%clk 0:02:31]} 16. Bg5 {[%clk 0:02:39]}  Nc6 {[%clk 0:02:11]} 17. Bxe7 {[%clk 0:02:28]}  Nxe7 {[%clk 0:02:10]} 18. Rad1 {[%clk 0:02:18]}  Qxb2 {[%clk 0:01:57]} 19. Rd3 {[%clk 0:01:49]}  Rac8 {[%clk 0:01:45]} 20. Rb1 {[%clk 0:01:42]}  Qa3 {[%clk 0:01:11]} 21. Rb3 {[%clk 0:01:41]}  Qa5 {[%clk 0:01:02]} 22. Ng5 {[%clk 0:01:31]}  Bf5 {[%clk 0:00:58]} 23. Rf3 {[%clk 0:01:20]}  h6 {[%clk 0:00:48]} 24. Nh3 {[%clk 0:01:14]}  Bg6 {[%clk 0:00:47]} 25. Qg4 {[%clk 0:01:12]}  Rc4 {[%clk 0:00:40]} 26. Rxb7 {[%clk 0:00:53]}  Rxc3 {[%clk 0:00:36]} 27. Rxe7 {[%clk 0:00:42]}  Rc1+ {[%clk 0:00:20]} 28. Rf1 {[%clk 0:00:42]}  Rxf1+ {[%clk 0:00:17]} 29. Kxf1 {[%clk 0:00:43]}  Bd3+ {[%clk 0:00:16]} 30. Kf2 {[%clk 0:00:42]}  Qd2+ {[%clk 0:00:16]} 31. Kg3 {[%clk 0:00:42]}  Be4 {[%clk 0:00:03]} 32. Nf4 {[%clk 0:00:34]}  Qe3+ {[%clk 0:00:03]} 33. Kh4 {[%clk 0:00:28]}  g5+ {[%clk 0:00:03]} 34. Kh5 {[%clk 0:00:27]}  Qxf4 {[%clk 0:00:02]} 35. Qxf4 {[%clk 0:00:24]}  gxf4 {[%clk 0:00:03]} 36. Kg4 {[%clk 0:00:23]}  Bxg2 {[%clk 0:00:02]} 37. Kxf4 {[%clk 0:00:23]}  Ra8 {[%clk 0:00:02]} 38. Kf5 {[%clk 0:00:22]}  Be4+ {[%clk 0:00:03]} 39. Kf6 {[%clk 0:00:22]}  a5 {[%clk 0:00:03]} 40. Rxf7 {[%clk 0:00:22]}  Rf8 {[%clk 0:00:03]} 41. e6 {[%clk 0:00:19]}  Rxf7+ {[%clk 0:00:03]} 42. exf7+ {[%clk 0:00:19]}  Kf8 {[%clk 0:00:04]} 43. h4 {[%clk 0:00:19]}  h5 {[%clk 0:00:04]} 44. Kg5 {[%clk 0:00:18]}  Bc2 {[%clk 0:00:04]} 45. Kxh5 {[%clk 0:00:18]}  Kxf7 {[%clk 0:00:05]} 46. Kg5 {[%clk 0:00:19]}  Bb1 {[%clk 0:00:05]} 47. a3 {[%clk 0:00:18]}  a4 {[%clk 0:00:05]} 48. Kf4 {[%clk 0:00:19]}  Ke6 {[%clk 0:00:05]} 49. h5 {[%clk 0:00:17]}  Kd6 {[%clk 0:00:06]} 50. Ke3 {[%clk 0:00:15]}  Kc6 {[%clk 0:00:06]} 51. Kd2 {[%clk 0:00:15]}  Be4 {[%clk 0:00:07]} 52. Kc3 {[%clk 0:00:15]}  Kb5 {[%clk 0:00:07]} 53. h6 {[%clk 0:00:15]}  Bf5 {[%clk 0:00:08]} 54. Kd2 {[%clk 0:00:12]}  Bh7 {[%clk 0:00:09]} 55. Kc3 {[%clk 0:00:12]}  Bg6 {[%clk 0:00:09]} 56. Kd2 {[%clk 0:00:12]}  Kc4 {[%clk 0:00:10]} 57. Ke3 {[%clk 0:00:13]}  Kb3 {[%clk 0:00:10]} 58. Kd2 {[%clk 0:00:13]}  Kxa3 {[%clk 0:00:10]} 59. Kc3 {[%clk 0:00:13]}  Ka2 {[%clk 0:00:11]} 60. Kd2 {[%clk 0:00:13]}  a3 {[%clk 0:00:11]} 61. Kc1 {[%clk 0:00:13]}  Kb3 {[%clk 0:00:12]} 62. Kd2 {[%clk 0:00:12]}  a2 {[%clk 0:00:12]} 63. Ke3 {[%clk 0:00:13]}  a1=Q {[%clk 0:00:12]} 64. Kf4 {[%clk 0:00:14]}  Qxd4+ {[%clk 0:00:12]} 65. Kg5 {[%clk 0:00:13]}  Bh7 {[%clk 0:00:09]} 0-1


[Site "https://www.chess.com"]

[Event "Titled Tuesday Blitz August 15 Early 2023"]
[White "Lach, Aleksandra"]
[Black "Deng, Henry"]
[WhiteFideId "1134299"]
[BlackFideId "30965454"]
[WhiteElo "2419"]
[BlackElo "2571"]
[Result "1-0"]
[Round "9"]
[TimeControl "180+1"]
[Date "2023.08.15"]
[WhiteClock "0:00:02"]
[BlackClock "0:00:09"]
[Board "76"]

1. c4 {[%clk 0:02:59]}  c6 {[%clk 0:03:00]} 2. g3 {[%clk 0:02:59]}  d5 {[%clk 0:03:00]} 3. cxd5 {[%clk 0:02:59]}  cxd5 {[%clk 0:03:01]} 4. Bg2 {[%clk 0:02:59]}  Nf6 {[%clk 0:03:00]} 5. Nf3 {[%clk 0:02:59]}  Bg4 {[%clk 0:02:58]} 6. O-O {[%clk 0:02:58]}  e6 {[%clk 0:02:58]} 7. d4 {[%clk 0:02:57]}  Nc6 {[%clk 0:02:54]} 8. Nc3 {[%clk 0:02:48]}  Be7 {[%clk 0:02:52]} 9. Bf4 {[%clk 0:02:48]}  O-O {[%clk 0:02:44]} 10. Ne5 {[%clk 0:02:27]}  Bf5 {[%clk 0:02:42]} 11. Nxc6 {[%clk 0:02:25]}  bxc6 {[%clk 0:02:43]} 12. Rc1 {[%clk 0:02:25]}  Nd7 {[%clk 0:02:23]} 13. Na4 {[%clk 0:02:24]}  Rc8 {[%clk 0:02:21]} 14. Be3 {[%clk 0:02:09]}  Qa5 {[%clk 0:02:14]} 15. a3 {[%clk 0:02:07]}  e5 {[%clk 0:01:56]} 16. b4 {[%clk 0:02:00]}  Qa6 {[%clk 0:01:55]} 17. dxe5 {[%clk 0:01:59]}  Nxe5 {[%clk 0:01:56]} 18. Bc5 {[%clk 0:01:57]}  Rfe8 {[%clk 0:01:51]} 19. Re1 {[%clk 0:01:20]}  Bf6 {[%clk 0:01:31]} 20. Bd4 {[%clk 0:00:46]}  Nd7 {[%clk 0:01:00]} 21. Bxf6 {[%clk 0:00:45]}  Nxf6 {[%clk 0:01:01]} 22. Rc3 {[%clk 0:00:42]}  Qb5 {[%clk 0:00:57]} 23. Nc5 {[%clk 0:00:40]}  a5 {[%clk 0:00:57]} 24. Qa4 {[%clk 0:00:32]}  axb4 {[%clk 0:00:52]} 25. axb4 {[%clk 0:00:26]}  Rxe2 {[%clk 0:00:48]} 26. Rxe2 {[%clk 0:00:18]}  Qxe2 {[%clk 0:00:49]} 27. Re3 {[%clk 0:00:18]}  Qc4 {[%clk 0:00:47]} 28. Bf1 {[%clk 0:00:18]}  Qc1 {[%clk 0:00:44]} 29. Qa6 {[%clk 0:00:18]}  h6 {[%clk 0:00:42]} 30. g4 {[%clk 0:00:14]}  Bxg4 {[%clk 0:00:41]} 31. h3 {[%clk 0:00:14]}  Bf5 {[%clk 0:00:39]} 32. Rf3 {[%clk 0:00:13]}  Qc2 {[%clk 0:00:36]} 33. Bd3 {[%clk 0:00:10]}  Qc1+ {[%clk 0:00:34]} 34. Kg2 {[%clk 0:00:08]}  Bxh3+ {[%clk 0:00:22]} 35. Rxh3 {[%clk 0:00:08]}  Re8 {[%clk 0:00:20]} 36. Rg3 {[%clk 0:00:08]}  Nh5 {[%clk 0:00:17]} 37. Qxc6 {[%clk 0:00:08]}  Qe1 {[%clk 0:00:14]} 38. Rf3 {[%clk 0:00:04]}  Qe5 {[%clk 0:00:13]} 39. Qd7 {[%clk 0:00:03]}  Qg5+ {[%clk 0:00:13]} 40. Kh2 {[%clk 0:00:02]}  Rf8 {[%clk 0:00:13]} 41. Qh3 {[%clk 0:00:02]}  Nf4 {[%clk 0:00:12]} 42. Qg3 {[%clk 0:00:02]}  Qh5+ {[%clk 0:00:12]} 43. Kg1 {[%clk 0:00:03]}  g5 {[%clk 0:00:11]} 44. Rxf4 {[%clk 0:00:02]}  Kh8 {[%clk 0:00:11]} 45. Rg4 {[%clk 0:00:02]}  f5 {[%clk 0:00:11]} 46. Bxf5 {[%clk 0:00:02]}  Rxf5 {[%clk 0:00:11]} 47. Qb8+ {[%clk 0:00:02]}  Kg7 {[%clk 0:00:12]} 48. Qc7+ {[%clk 0:00:03]}  Rf7 {[%clk 0:00:11]} 49. Ne6+ {[%clk 0:00:03]}  Kf6 {[%clk 0:00:11]} 50. Qd8+ {[%clk 0:00:02]}  Kxe6 {[%clk 0:00:11]} 51. Rg3 {[%clk 0:00:03]}  Qd1+ {[%clk 0:00:11]} 52. Kg2 {[%clk 0:00:03]}  Rf4 {[%clk 0:00:10]} 53. Re3+ {[%clk 0:00:03]}  Kf5 {[%clk 0:00:10]} 54. Qd7+ {[%clk 0:00:03]}  Kg6 {[%clk 0:00:10]} 55. Qe8+ {[%clk 0:00:03]}  Kf5 {[%clk 0:00:09]} 56. Qe6# {[%clk 0:00:02]} 1-0


[Site "https://www.chess.com"]

[Event "Titled Tuesday Blitz August 15 Early 2023"]
[White "Devaev, Alexander"]
[Black "Gritsenko, Nikolai"]
[WhiteFideId "4169395"]
[BlackFideId "14112493"]
[WhiteElo "2466"]
[BlackElo "2721"]
[Result "1-0"]
[Round "9"]
[TimeControl "180+1"]
[Date "2023.08.15"]
[WhiteClock "0:00:06"]
[BlackClock "0:00:00"]
[Board "77"]

1. Nf3 {[%clk 0:03:00]}  c5 {[%clk 0:02:59]} 2. c4 {[%clk 0:03:01]}  b6 {[%clk 0:02:58]} 3. Nc3 {[%clk 0:03:02]}  Bb7 {[%clk 0:02:59]} 4. e3 {[%clk 0:03:02]}  e6 {[%clk 0:02:58]} 5. Be2 {[%clk 0:03:03]}  Nf6 {[%clk 0:02:57]} 6. O-O {[%clk 0:03:04]}  Be7 {[%clk 0:02:56]} 7. b3 {[%clk 0:03:04]}  O-O {[%clk 0:02:56]} 8. Bb2 {[%clk 0:03:05]}  d6 {[%clk 0:02:53]} 9. d4 {[%clk 0:03:04]}  cxd4 {[%clk 0:02:50]} 10. Nxd4 {[%clk 0:03:01]}  a6 {[%clk 0:02:50]} 11. Bf3 {[%clk 0:02:59]}  Qc7 {[%clk 0:02:48]} 12. Rc1 {[%clk 0:02:58]}  Nbd7 {[%clk 0:02:46]} 13. Bxb7 {[%clk 0:02:53]}  Qxb7 {[%clk 0:02:46]} 14. Qf3 {[%clk 0:02:53]}  Rfb8 {[%clk 0:02:36]} 15. Rfd1 {[%clk 0:02:51]}  Ne5 {[%clk 0:02:27]} 16. Qxb7 {[%clk 0:02:51]}  Rxb7 {[%clk 0:02:27]} 17. h3 {[%clk 0:02:51]}  Rc8 {[%clk 0:02:24]} 18. f4 {[%clk 0:02:50]}  Ned7 {[%clk 0:02:24]} 19. Kf2 {[%clk 0:02:45]}  g6 {[%clk 0:01:47]} 20. Kf3 {[%clk 0:02:44]}  Rbc7 {[%clk 0:01:40]} 21. g4 {[%clk 0:02:38]}  Nc5 {[%clk 0:01:35]} 22. g5 {[%clk 0:02:27]}  Nh5 {[%clk 0:01:32]} 23. h4 {[%clk 0:02:23]}  Ng7 {[%clk 0:01:21]} 24. e4 {[%clk 0:01:56]}  f6 {[%clk 0:01:11]} 25. Ke3 {[%clk 0:01:35]}  Kf7 {[%clk 0:01:06]} 26. Nf3 {[%clk 0:01:30]}  h6 {[%clk 0:00:53]} 27. Ne2 {[%clk 0:01:18]}  Nh5 {[%clk 0:00:48]} 28. Rg1 {[%clk 0:00:53]}  hxg5 {[%clk 0:00:46]} 29. hxg5 {[%clk 0:00:52]}  f5 {[%clk 0:00:45]} 30. e5 {[%clk 0:00:42]}  Rd7 {[%clk 0:00:32]} 31. Rgd1 {[%clk 0:00:39]}  Rcd8 {[%clk 0:00:31]} 32. Ned4 {[%clk 0:00:34]}  d5 {[%clk 0:00:19]} 33. Nc6 {[%clk 0:00:33]}  Rc8 {[%clk 0:00:19]} 34. Nxe7 {[%clk 0:00:30]}  Rxe7 {[%clk 0:00:16]} 35. cxd5 {[%clk 0:00:29]}  Rd8 {[%clk 0:00:15]} 36. d6 {[%clk 0:00:29]}  Red7 {[%clk 0:00:15]} 37. Nd4 {[%clk 0:00:26]}  Ng3 {[%clk 0:00:13]} 38. b4 {[%clk 0:00:24]}  Nce4 {[%clk 0:00:13]} 39. Rc6 {[%clk 0:00:22]}  Rh8 {[%clk 0:00:12]} 40. Nf3 {[%clk 0:00:19]}  Rh3 {[%clk 0:00:10]} 41. Rc7 {[%clk 0:00:19]}  Ke8 {[%clk 0:00:10]} 42. Rdc1 {[%clk 0:00:19]}  Nh5 {[%clk 0:00:09]} 43. Rxd7 {[%clk 0:00:19]}  Kxd7 {[%clk 0:00:09]} 44. Rc7+ {[%clk 0:00:19]}  Kd8 {[%clk 0:00:09]} 45. Ra7 {[%clk 0:00:12]}  Nhg3 {[%clk 0:00:09]} 46. Nd4 {[%clk 0:00:10]}  Nf1+ {[%clk 0:00:08]} 47. Ke2 {[%clk 0:00:07]}  Nfg3+ {[%clk 0:00:08]} 48. Kf3 {[%clk 0:00:07]}  Nh5+ {[%clk 0:00:07]} 49. Kg2 {[%clk 0:00:08]}  Nxf4+ {[%clk 0:00:07]} 50. Kg1 {[%clk 0:00:07]}  Rg3+ {[%clk 0:00:07]} 51. Kf1 {[%clk 0:00:06]}  Nd2+ {[%clk 0:00:06]} 52. Ke1 {[%clk 0:00:06]}  Nf3+ {[%clk 0:00:05]} 53. Nxf3 {[%clk 0:00:06]}  Rxf3 {[%clk 0:00:05]} 54. Ra8+ {[%clk 0:00:06]}  Kd7 {[%clk 0:00:05]} 55. Ra7+ {[%clk 0:00:07]}  Kd8 {[%clk 0:00:05]} 56. Bd4 {[%clk 0:00:07]}  Nd5 {[%clk 0:00:05]} 57. Rxa6 {[%clk 0:00:06]}  f4 {[%clk 0:00:05]} 58. Bxb6+ {[%clk 0:00:06]}  Kd7 {[%clk 0:00:04]} 59. Bc5 {[%clk 0:00:06]}  Rh3 {[%clk 0:00:03]} 60. Ra7+ {[%clk 0:00:06]}  Kc6 {[%clk 0:00:03]} 61. d7 {[%clk 0:00:06]}  Rh8 {[%clk 0:00:03]} 62. Ra6+ {[%clk 0:00:04]}  Kb5 {[%clk 0:00:03]} 63. Rd6 {[%clk 0:00:04]}  Rd8 {[%clk 0:00:03]} 64. Rxe6 {[%clk 0:00:04]}  Kc4 {[%clk 0:00:03]} 65. Rd6 {[%clk 0:00:04]}  f3 {[%clk 0:00:02]} 66. e6 {[%clk 0:00:04]}  Rh8 {[%clk 0:00:02]} 67. Kf2 {[%clk 0:00:05]}  Rh2+ {[%clk 0:00:02]} 68. Kxf3 {[%clk 0:00:06]}  Rh3+ {[%clk 0:00:03]} 69. Kg2 {[%clk 0:00:06]}  Rd3 {[%clk 0:00:03]} 70. d8=Q {[%clk 0:00:07]}  Nf4+ {[%clk 0:00:04]} 71. Kf2 {[%clk 0:00:06]}  Nh3+ {[%clk 0:00:04]} 72. Ke1 {[%clk 0:00:06]}  Re3+ {[%clk 0:00:00]} 73. Bxe3 {[%clk 0:00:06]} 1-0


[Site "https://www.chess.com"]

[Event "Titled Tuesday Blitz August 15 Early 2023"]
[White "Veiga, Jose Francisco R P Neves"]
[Black "brm72"]
[WhiteFideId "1930087"]
[WhiteElo "2666"]
[BlackElo "2464"]
[Result "1-0"]
[Round "9"]
[TimeControl "180+1"]
[Date "2023.08.15"]
[WhiteClock "0:01:07"]
[BlackClock "0:00:03"]
[Board "78"]

1. c4 {[%clk 0:02:54]}  c5 {[%clk 0:02:59]} 2. Nc3 {[%clk 0:02:55]}  Nc6 {[%clk 0:02:59]} 3. g3 {[%clk 0:02:54]}  g6 {[%clk 0:02:59]} 4. Bg2 {[%clk 0:02:54]}  Bg7 {[%clk 0:02:59]} 5. e4 {[%clk 0:02:54]}  Nf6 {[%clk 0:02:56]} 6. Nge2 {[%clk 0:02:55]}  O-O {[%clk 0:02:49]} 7. O-O {[%clk 0:02:56]}  d6 {[%clk 0:02:48]} 8. a3 {[%clk 0:02:55]}  a5 {[%clk 0:02:47]} 9. Rb1 {[%clk 0:02:54]}  Ne8 {[%clk 0:02:39]} 10. d3 {[%clk 0:02:36]}  Nc7 {[%clk 0:02:35]} 11. Be3 {[%clk 0:02:35]}  Ne6 {[%clk 0:02:30]} 12. Nd5 {[%clk 0:02:31]}  Ned4 {[%clk 0:02:30]} 13. b4 {[%clk 0:02:30]}  axb4 {[%clk 0:02:24]} 14. axb4 {[%clk 0:02:31]}  e6 {[%clk 0:02:25]} 15. b5 {[%clk 0:02:25]}  exd5 {[%clk 0:02:02]} 16. bxc6 {[%clk 0:02:23]}  bxc6 {[%clk 0:01:54]} 17. exd5 {[%clk 0:02:22]}  Bg4 {[%clk 0:01:25]} 18. Bxd4 {[%clk 0:02:07]}  Bxd4 {[%clk 0:01:23]} 19. dxc6 {[%clk 0:02:07]}  Ra2 {[%clk 0:01:21]} 20. Re1 {[%clk 0:01:58]}  Re8 {[%clk 0:01:21]} 21. Qb3 {[%clk 0:01:30]}  Raxe2 {[%clk 0:01:17]} 22. Rxe2 {[%clk 0:01:29]}  Rxe2 {[%clk 0:01:12]} 23. Qb8 {[%clk 0:01:29]}  Qxb8 {[%clk 0:00:46]} 24. Rxb8+ {[%clk 0:01:28]}  Kg7 {[%clk 0:00:46]} 25. h3 {[%clk 0:01:28]}  Re1+ {[%clk 0:00:21]} 26. Kh2 {[%clk 0:01:28]}  Bf5 {[%clk 0:00:19]} 27. c7 {[%clk 0:01:21]}  Bxf2 {[%clk 0:00:19]} 28. g4 {[%clk 0:01:10]}  Bd4 {[%clk 0:00:14]} 29. Bd5 {[%clk 0:01:08]}  Be5+ {[%clk 0:00:07]} 30. Kg2 {[%clk 0:01:08]}  Bd7 {[%clk 0:00:03]} 31. Rd8 {[%clk 0:01:07]} 1-0


[Site "https://www.chess.com"]

[Event "Titled Tuesday Blitz August 15 Early 2023"]
[White "Haug, Havard"]
[Black "dr_tatiana"]
[WhiteFideId "1547887"]
[WhiteElo "2651"]
[BlackElo "2447"]
[Result "1-0"]
[Round "9"]
[TimeControl "180+1"]
[Date "2023.08.15"]
[WhiteClock "0:01:48"]
[BlackClock "0:00:00"]
[Board "79"]

1. e4 {[%clk 0:03:00]}  e5 {[%clk 0:02:59]} 2. Nf3 {[%clk 0:02:59]}  Nc6 {[%clk 0:02:59]} 3. Bc4 {[%clk 0:02:59]}  Bc5 {[%clk 0:02:59]} 4. c3 {[%clk 0:02:58]}  Nf6 {[%clk 0:02:55]} 5. d3 {[%clk 0:02:57]}  d6 {[%clk 0:02:49]} 6. O-O {[%clk 0:02:56]}  a6 {[%clk 0:02:49]} 7. a4 {[%clk 0:02:54]}  Ba7 {[%clk 0:02:48]} 8. Re1 {[%clk 0:02:52]}  h6 {[%clk 0:02:47]} 9. Nbd2 {[%clk 0:02:49]}  O-O {[%clk 0:02:46]} 10. Nf1 {[%clk 0:02:47]}  Ne7 {[%clk 0:02:47]} 11. h3 {[%clk 0:02:44]}  Ng6 {[%clk 0:02:47]} 12. Ng3 {[%clk 0:02:36]}  Be6 {[%clk 0:02:38]} 13. Bb3 {[%clk 0:02:26]}  Qd7 {[%clk 0:02:33]} 14. Bc2 {[%clk 0:02:26]}  Rfe8 {[%clk 0:02:31]} 15. d4 {[%clk 0:02:25]}  exd4 {[%clk 0:01:51]} 16. cxd4 {[%clk 0:02:26]}  d5 {[%clk 0:01:51]} 17. e5 {[%clk 0:02:23]}  Nh7 {[%clk 0:01:49]} 18. Be3 {[%clk 0:02:10]}  Nhf8 {[%clk 0:01:48]} 19. Nh5 {[%clk 0:02:07]}  Kh8 {[%clk 0:00:27]} 20. Qd2 {[%clk 0:02:06]}  Nh7 {[%clk 0:00:26]} 21. Bxh6 {[%clk 0:02:03]}  gxh6 {[%clk 0:00:27]} 22. Qxh6 {[%clk 0:02:04]}  Rg8 {[%clk 0:00:22]} 23. Nf6 {[%clk 0:02:02]}  Rg7 {[%clk 0:00:19]} 24. Nxd7 {[%clk 0:02:01]}  Bxd7 {[%clk 0:00:20]} 25. e6 {[%clk 0:02:01]}  Bxe6 {[%clk 0:00:13]} 26. Rxe6 {[%clk 0:02:00]}  fxe6 {[%clk 0:00:14]} 27. Bxg6 {[%clk 0:02:00]}  Rag8 {[%clk 0:00:12]} 28. Ng5 {[%clk 0:01:58]}  Bxd4 {[%clk 0:00:08]} 29. Bxh7 {[%clk 0:01:55]}  Rf8 {[%clk 0:00:00]} 30. Nxe6 {[%clk 0:01:48]} 1-0


[Site "https://www.chess.com"]